fUSD/lending_fUSD_20240726
["ID","MTS","AMOUNT","RATE_DAILY","PERIOD"]
[333250835,1721982632285,-4505.84332277,0.0001045,2]
[333250836,1721982632294,-635.61,0.00010562,2]
[333250837,1721982632303,-1000.0,0.0001089,2]
[333250838,1721982632313,-42344.79780599,0.0001089,2]
[333250839,1721982632332,-2527.9180837,0.0001089,2]
[333250840,1721982632375,-1500.0,0.0001089,2]
[333250841,1721982632386,-10106.43869969,0.0001089,2]
[333250850,1721982638226,-4841.50028613,0.0001089,2]
[333250851,1721982638238,-619.9401,0.0001089,2]
[333250852,1721982638334,-1097.72602781,0.0001089,2]
[333250853,1721982638387,-14708.21026135,0.0001089,2]
[333250854,1721982638398,-7973.33483533,0.0001089,2]
[333250855,1721982638407,-281.7,0.0001089,2]
[333250856,1721982638417,-1700.0,0.00010899,2]
[333250857,1721982638427,-1142.21,0.000109,2]
[333250858,1721982638437,-10000.0,0.000109,2]
[333250860,1721982638446,-1104.1417,0.000109,2]
[333250861,1721982638455,-1807.2438,0.000109,2]
[333250863,1721982638464,-314.06557764,0.000109,2]
[333250864,1721982638474,-200.0,0.00010959,2]
[333250866,1721982638483,-499.99,0.00010959,2]
[333250868,1721982638493,-250.0,0.00010959,2]
[333250870,1721982638503,-310.624996,0.00010989,2]
[333250872,1721982638512,-500.0,0.00010989,2]
[333250873,1721982638522,-1683.9312762,0.00010999,2]
[333250875,1721982638531,-71898.12928753,0.00011,2]
[333250998,1721982640313,-492.09818283,0.00011,2]
[333251000,1721982640325,-70196.8605845,0.00011,2]
[333251002,1721982640336,-1679.8,0.00011,2]
[333251004,1721982640347,-662.68309162,0.00011,2]
[333251007,1721982640360,-558.89350208,0.00011,2]
[333251010,1721982640386,-26484.0,0.00011,2]
[333251013,1721982640398,-6746.71144992,0.00011,2]
[333251015,1721982640410,-982.24203917,0.00011,2]
[333251017,1721982640422,-293.6468415,0.00011,2]
[333251099,1721982643109,-11245.84400557,0.00011,2]
[333251100,1721982643118,-390198.77908073,0.00011,2]
[333251101,1721982643167,-78325.42859278,0.00011,2]
[333251102,1721982643179,-1715.41144929,0.00011,2]
[333251103,1721982643281,-370.5881043,0.00011,2]
[333251104,1721982643293,-21368.37115607,0.00011,2]
[333251105,1721982643303,-1536.46778324,0.00011,2]
[333251108,1721982646174,-1783.582921,0.00011,2]
[333251110,1721982646481,-6719.11936,0.00011,2]
[333251113,1721982646493,-3036.39153153,0.00011,2]
[333251116,1721982646504,-674.13338712,0.00011,2]
[333251118,1721982646515,-310.624996,0.00011,2]
[333251178,1721982855416,712.95,0.0001337,30]
[333251183,1721983390225,69000.0,0.000162,120]
[333251184,1721983405374,801.07,0.000162,120]
[333251185,1721983452588,28655.85,0.000163,120]
[333251186,1721983493119,653.53,0.0001337,30]
[333251187,1721983583629,-579.83,8.219e-05,2]
[333251188,1721983583651,-250.0,0.00010019,2]
[333251189,1721983583673,-1000.0,0.00010028,2]
[333251190,1721983583695,-163.4444711,0.00010301,2]
[333251191,1721983583718,-579.83,0.0001048,2]
[333251192,1721983583740,-150.0,0.0001074,2]
[333251193,1721983583762,-256.6235685,0.0001078,2]
[333251194,1721983583784,-300.0,0.0001078,2]
[333251195,1721983583806,-997.6907,0.00010889,2]
[333251196,1721983583827,-3000.0,0.0001089,2]
[333251197,1721983583848,-300.0,0.00010897,2]
[333251198,1721983583869,-2422.5812604,0.00010898,2]
[333251220,1721983833171,-521.84,8.219e-05,2]
[333251222,1721983833181,-150.0,9.888e-05,2]
[333251224,1721983833192,-200.0,0.00010104,2]
[333251226,1721983833201,-521.84,0.00010482,2]
[333251228,1721983833211,-300.0,0.00010897,2]
[333251230,1721983833222,-300.31921246,0.00010898,2]
[333251231,1721983833232,-412.59782516,0.00010898,2]
[333251233,1721983833242,-155.0,0.00010898,2]
[333251235,1721983833251,-485.05125098,0.00010898,2]
[333251237,1721983833261,-1338.26134358,0.00010898,2]
[333251239,1721983833273,-1181.42468244,0.00010898,2]
[333251264,1721983833507,-4121.07153573,0.00010898,2]
[333251266,1721983833519,-18128.86117993,0.00010898,2]
[333251268,1721983833528,-1840.6102,0.00010899,2]
[333251270,1721983833538,-4488.9878235,0.000109,2]
[333251272,1721983833549,-1421.18809713,0.000109,2]
[333251274,1721983833560,-750.26546194,0.000109,2]
[333251276,1721983833571,-1266.60175907,0.000109,2]
[333251280,1721983834095,-2072.95685836,0.000109,2]
[333251281,1721983834105,-293.86742203,0.000109,2]
[333251282,1721983834281,-134.35257797,0.000109,2]
[333251283,1721983834291,-499.99,0.000109,2]
[333251284,1721983834302,-300.2980198,0.000109,2]
[333251285,1721983834313,-198.5207016,0.00010912,2]
[333251286,1721983834354,-301.4792984,0.00010912,2]
[333251287,1721983834364,-200.0,0.00010959,2]
[333251288,1721983834375,-1415.32309103,0.00010959,5]
[333251289,1721983834387,-84.67690897,0.00010959,5]
[333251290,1721983834398,-732.19,0.00010959,2]
[333251291,1721983834408,-317.0,0.00010964,2]
[333251292,1721983834419,-317.0,0.00010964,2]
[333251293,1721983834430,-55.40079375,0.00010964,2]
[333251294,1721983834443,-261.59920625,0.00010964,2]
[333251295,1721983834454,-317.0,0.00010964,2]
[333251296,1721983834464,-127.47561739,0.00010964,2]
[333251297,1721983834477,-189.52438261,0.00010964,2]
[333251298,1721983834490,-317.0,0.00010964,2]
[333251299,1721983834500,-317.0,0.00010964,2]
[333251300,1721983834511,-317.0,0.00010964,2]
[333251301,1721983834521,-317.0,0.00010964,2]
[333251302,1721983834531,-317.0,0.00010964,2]
[333251303,1721983834541,-317.0,0.00010964,2]
[333251304,1721983834552,-317.0,0.00010964,2]
[333251305,1721983834562,-317.0,0.00010964,2]
[333251306,1721983834572,-317.0,0.00010964,2]
[333251307,1721983834583,-317.0,0.00010964,2]
[333251308,1721983834593,-76.73540989,0.00010964,2]
[333251309,1721983834652,-240.26459011,0.00010964,2]
[333251310,1721983834662,-317.0,0.00010964,2]
[333251311,1721983834672,-317.0,0.00010964,2]
[333251312,1721983834682,-317.0,0.00010964,2]
[333251313,1721983834693,-317.0,0.00010964,2]
[333251314,1721983834704,-317.0,0.00010964,2]
[333251315,1721983834714,-317.0,0.00010964,2]
[333251316,1721983834724,-317.0,0.00010964,2]
[333251317,1721983834736,-317.0,0.00010964,2]
[333251318,1721983834747,-317.0,0.00010964,2]
[333251319,1721983834757,-317.0,0.00010964,2]
[333251320,1721983834768,-317.0,0.00010964,2]
[333251321,1721983834778,-317.0,0.00010964,2]
[333251322,1721983834789,-317.0,0.00010964,2]
[333251323,1721983834799,-317.0,0.00010964,2]
[333251324,1721983834810,-317.0,0.00010964,2]
[333251325,1721983834820,-317.0,0.00010964,2]
[333251326,1721983834831,-317.0,0.00010964,2]
[333251327,1721983834842,-317.0,0.00010964,2]
[333251328,1721983834853,-317.0,0.00010964,2]
[333251329,1721983834864,-317.0,0.00010964,2]
[333251330,1721983834875,-317.0,0.00010964,2]
[333251331,1721983834885,-317.0,0.00010964,2]
[333251332,1721983834896,-317.0,0.00010964,2]
[333251333,1721983834906,-317.0,0.00010964,2]
[333251334,1721983834917,-317.0,0.00010964,2]
[333251335,1721983834927,-317.0,0.00010964,2]
[333251336,1721983834937,-317.0,0.00010964,2]
[333251337,1721983834947,-317.0,0.00010964,2]
[333251338,1721983834957,-317.0,0.00010964,2]
[333251339,1721983834967,-317.0,0.00010964,2]
[333251340,1721983834977,-317.0,0.00010964,2]
[333251341,1721983834988,-317.0,0.00010964,2]
[333251342,1721983834998,-317.0,0.00010964,2]
[333251343,1721983835008,-317.0,0.00010964,2]
[333251344,1721983835018,-126.11126874,0.00010964,2]
[333251345,1721983835031,-190.88873126,0.00010964,2]
[333251346,1721983835040,-317.0,0.00010964,2]
[333251347,1721983835049,-317.0,0.00010964,2]
[333251348,1721983835059,-317.0,0.00010964,2]
[333251349,1721983835068,-317.0,0.00010964,2]
[333251350,1721983835078,-317.0,0.00010964,2]
[333251351,1721983835087,-317.0,0.00010964,2]
[333251352,1721983835097,-317.0,0.00010964,2]
[333251353,1721983835106,-317.0,0.00010964,2]
[333251354,1721983835116,-317.0,0.00010964,2]
[333251355,1721983835125,-317.0,0.00010964,2]
[333251356,1721983835136,-317.0,0.00010964,2]
[333251357,1721983835145,-317.0,0.00010964,2]
[333251358,1721983835155,-317.0,0.00010964,2]
[333251359,1721983835165,-317.0,0.00010964,2]
[333251360,1721983835174,-317.0,0.00010964,2]
[333251361,1721983835183,-317.0,0.00010964,2]
[333251362,1721983835193,-317.0,0.00010964,2]
[333251363,1721983835202,-317.0,0.00010964,2]
[333251364,1721983835211,-317.0,0.00010964,2]
[333251365,1721983835223,-317.0,0.00010964,2]
[333251366,1721983835233,-317.0,0.00010964,2]
[333251367,1721983835243,-317.0,0.00010964,2]
[333251368,1721983835253,-317.0,0.00010964,2]
[333251369,1721983835263,-317.0,0.00010964,2]
[333251370,1721983835273,-317.0,0.00010964,2]
[333251371,1721983835282,-317.0,0.00010964,2]
[333251372,1721983835291,-317.0,0.00010964,2]
[333251373,1721983835303,-317.0,0.00010964,2]
[333251374,1721983835314,-317.0,0.00010964,2]
[333251375,1721983835324,-317.0,0.00010964,2]
[333251376,1721983835335,-317.0,0.00010964,2]
[333251377,1721983835345,-317.0,0.00010964,2]
[333251378,1721983835355,-317.0,0.00010964,2]
[333251379,1721983835365,-317.0,0.00010964,2]
[333251380,1721983835375,-317.0,0.00010964,2]
[333251381,1721983835384,-317.0,0.00010964,2]
[333251382,1721983835395,-317.0,0.00010964,2]
[333251383,1721983835404,-317.0,0.00010964,2]
[333251384,1721983835413,-317.0,0.00010964,2]
[333251385,1721983835423,-317.0,0.00010964,2]
[333251386,1721983835431,-317.0,0.00010964,2]
[333251387,1721983835440,-317.0,0.00010964,2]
[333251388,1721983835450,-317.0,0.00010964,2]
[333251389,1721983835459,-317.0,0.00010964,2]
[333251390,1721983835468,-317.0,0.00010964,2]
[333251391,1721983835477,-126.89259696,0.00010964,2]
[333251392,1721983835491,-190.10740304,0.00010964,2]
[333251393,1721983835500,-501.46180104,0.00010989,2]
[333251394,1721983835509,-473.61824485,0.00010989,2]
[333251395,1721983835518,-500.0,0.00010989,2]
[333251396,1721983835527,-522.5194356,0.00010989,2]
[333251397,1721983835536,-512.42832394,0.00010989,2]
[333251398,1721983835546,-561.42773282,0.00010989,2]
[333251399,1721983835555,-167.93260454,0.00010989,2]
[333251400,1721983835564,-500.0,0.00010989,2]
[333251401,1721983835574,-493.60105945,0.00010989,2]
[333251402,1721983835583,-500.0,0.00010989,2]
[333251403,1721983835592,-272.62474372,0.00010989,2]
[333251404,1721983835601,-501.59378719,0.00010989,2]
[333251405,1721983835610,-500.0,0.00010989,2]
[333251406,1721983835619,-500.0,0.00010989,2]
[333251407,1721983835628,-500.0,0.00010989,2]
[333251408,1721983835637,-500.0,0.00010989,2]
[333251409,1721983835646,-500.0,0.00010989,2]
[333251410,1721983835655,-500.0,0.00010989,2]
[333251411,1721983835665,-500.0,0.00010989,2]
[333251412,1721983835674,-500.0,0.00010989,2]
[333251413,1721983835683,-500.0,0.00010989,2]
[333251414,1721983835692,-502.53653135,0.00010989,2]
[333251415,1721983835701,-583.26609825,0.00010989,2]
[333251416,1721983835710,-500.0,0.00010989,2]
[333251417,1721983835720,-500.0,0.00010989,2]
[333251418,1721983835730,-500.0,0.00010989,2]
[333251419,1721983835741,-508.79088489,0.00010989,2]
[333251420,1721983835750,-500.0,0.00010989,2]
[333251421,1721983835760,-500.0,0.00010989,2]
[333251422,1721983835769,-4172.15,0.00010989,2]
[333251423,1721983835778,-500.0,0.00010989,2]
[333251424,1721983835787,-605.36515708,0.00010989,2]
[333251425,1721983835796,-500.0,0.00010989,2]
[333251426,1721983835805,-504.59451726,0.00010989,2]
[333251427,1721983835815,-500.0,0.00010989,2]
[333251428,1721983835825,-751.36,0.00010989,2]
[333251429,1721983835834,-1413.93,0.00010989,2]
[333251430,1721983835843,-370.24959355,0.00010989,2]
[333251431,1721983835853,-500.0,0.00010989,2]
[333251432,1721983835863,-606.88849534,0.00010989,2]
[333251433,1721983835872,-514.81806302,0.00010989,2]
[333251434,1721983835881,-500.0,0.00010989,2]
[333251435,1721983835891,-500.55618583,0.00010989,2]
[333251436,1721983835900,-157.01,0.0001099,2]
[333251437,1721983835910,-1000.23086999,0.00010997,2]
[333251438,1721983835919,-500.0,0.00010997,2]
[333251439,1721983835929,-501.44,0.00010997,2]
[333251440,1721983835939,-513.37226298,0.00010997,2]
[333251441,1721983835948,-505.90702789,0.00010997,2]
[333251442,1721983835957,-504.05311571,0.00010997,2]
[333251443,1721983835967,-507.27463901,0.00010997,2]
[333251444,1721983835976,-500.0,0.00010997,2]
[333251445,1721983835986,-379.46132279,0.00010997,2]
[333251446,1721983835995,-438.2236383,0.00010997,2]
[333251447,1721983836005,-637.87779135,0.00010997,2]
[333251448,1721983836014,-286.89882346,0.00010997,2]
[333251449,1721983836023,-154.33032652,0.00010997,2]
[333251450,1721983836033,-41666.4806414,0.00010998,2]
[333251451,1721983836042,-3149.3066838,0.00010998,2]
[333251452,1721983836052,-1173.8891175,0.00010998,2]
[333251453,1721983836061,-772.3226408,0.00010998,2]
[333251454,1721983836070,-12437.81653828,0.00010998,2]
[333251455,1721983836083,-1310.26197292,0.00010998,2]
[333251456,1721983836094,-879.4445751,0.00010998,2]
[333251457,1721983836103,-224.11255965,0.00010998,2]
[333251458,1721983836115,-518.40021227,0.00010998,2]
[333251459,1721983836135,-841.77747016,0.00010998,2]
[333251460,1721983836145,-614.92226377,0.00010998,2]
[333251461,1721983836157,-2664.86062965,0.00010998,2]
[333251462,1721983836166,-265.7616776,0.00010998,2]
[333251463,1721983836176,-1629.06500109,0.00010999,3]
[333251464,1721983836185,-272.584251,0.00010999,2]
[333251465,1721983836195,-500.0,0.00010999,2]
[333251466,1721983836204,-500.0,0.00010999,2]
[333251467,1721983836214,-1044.54,0.00010999,2]
[333251468,1721983836227,-583.04531013,0.00010999,2]
[333251469,1721983836236,-4172.15,0.00010999,2]
[333251470,1721983836246,-2786.29465479,0.00010999,2]
[333251471,1721983836258,-1385.85534521,0.00010999,2]
[333251472,1721983836272,-4172.15,0.00010999,2]
[333251473,1721983836282,-1036.65302134,0.00010999,2]
[333251474,1721983836294,-3135.49697866,0.00010999,2]
[333251475,1721983836305,-4172.15,0.00010999,2]
[333251476,1721983836316,-2770.41485422,0.00010999,2]
[333251477,1721983836327,-498.56133196,0.00010999,2]
[333251478,1721983836343,-903.17381382,0.00010999,2]
[333251479,1721983836352,-4172.15,0.00010999,2]
[333251480,1721983836362,-4172.15,0.00010999,2]
[333251481,1721983836371,-4172.15,0.00010999,2]
[333251482,1721983836380,-4172.15,0.00010999,2]
[333251483,1721983836389,-4172.15,0.00010999,2]
[333251484,1721983836399,-4172.15,0.00010999,2]
[333251485,1721983836408,-4172.15,0.00010999,2]
[333251486,1721983836417,-4172.15,0.00010999,2]
[333251487,1721983836427,-4172.15,0.00010999,2]
[333251488,1721983836437,-4172.15,0.00010999,2]
[333251489,1721983836446,-4172.15,0.00010999,2]
[333251490,1721983836456,-4172.15,0.00010999,2]
[333251491,1721983836465,-4172.15,0.00010999,2]
[333251492,1721983836474,-4172.15,0.00010999,2]
[333251493,1721983836484,-4172.15,0.00010999,2]
[333251494,1721983836494,-4172.15,0.00010999,2]
[333251495,1721983836503,-4172.17077026,0.00010999,2]
[333251496,1721983836512,-500.0,0.00010999,2]
[333251497,1721983836522,-500.0,0.00010999,2]
[333251498,1721983836721,-500.0,0.00010999,2]
[333251499,1721983836735,-500.0,0.00010999,2]
[333251500,1721983836745,-500.0,0.00010999,2]
[333251501,1721983836755,-397.18907452,0.00010999,2]
[333251502,1721983836765,-500.0,0.00010999,2]
[333251503,1721983836774,-500.0,0.00010999,2]
[333251504,1721983836784,-500.0,0.00010999,2]
[333251505,1721983836794,-500.0,0.00010999,2]
[333251506,1721983836803,-500.0,0.00010999,2]
[333251507,1721983836813,-500.0,0.00010999,2]
[333251508,1721983836822,-500.0,0.00010999,2]
[333251509,1721983836831,-500.0,0.00010999,2]
[333251510,1721983836840,-500.0,0.00010999,2]
[333251511,1721983836850,-488.15899209,0.00010999,2]
[333251512,1721983836863,-751.36,0.00010999,2]
[333251513,1721983836873,-751.36,0.00010999,2]
[333251514,1721983836882,-751.36,0.00010999,2]
[333251515,1721983836891,-751.36,0.00010999,2]
[333251516,1721983836901,-751.36,0.00010999,2]
[333251517,1721983836911,-751.36,0.00010999,2]
[333251518,1721983836920,-751.36,0.00010999,2]
[333251519,1721983836929,-751.36,0.00010999,2]
[333251520,1721983836938,-751.36,0.00010999,2]
[333251521,1721983836947,-751.36,0.00010999,2]
[333251522,1721983836957,-751.36,0.00010999,2]
[333251523,1721983836966,-751.36,0.00010999,2]
[333251524,1721983836976,-751.36,0.00010999,2]
[333251525,1721983836986,-751.36,0.00010999,2]
[333251526,1721983836996,-751.36,0.00010999,2]
[333251527,1721983837005,-751.36,0.00010999,2]
[333251528,1721983837015,-751.36,0.00010999,2]
[333251529,1721983837024,-751.36,0.00010999,2]
[333251530,1721983837034,-751.36,0.00010999,2]
[333251531,1721983837043,-751.36,0.00010999,2]
[333251532,1721983837052,-751.36,0.00010999,2]
[333251533,1721983837061,-751.36,0.00010999,2]
[333251534,1721983837070,-751.52988004,0.00010999,2]
[333251535,1721983837081,-1413.93,0.00010999,2]
[333251536,1721983837090,-1413.93,0.00010999,2]
[333251537,1721983837099,-1413.93,0.00010999,2]
[333251538,1721983837109,-1413.93,0.00010999,2]
[333251539,1721983837119,-1413.93,0.00010999,2]
[333251540,1721983837129,-1413.93,0.00010999,2]
[333251541,1721983837139,-1413.93,0.00010999,2]
[333251542,1721983837149,-1413.93,0.00010999,2]
[333251543,1721983837159,-1413.93,0.00010999,2]
[333251544,1721983837169,-1413.93,0.00010999,2]
[333251545,1721983837178,-1413.93,0.00010999,2]
[333251546,1721983837188,-1413.93,0.00010999,2]
[333251547,1721983837198,-1413.93,0.00010999,2]
[333251548,1721983837207,-1413.93,0.00010999,2]
[333251549,1721983837220,-1413.93,0.00010999,2]
[333251550,1721983837231,-1413.93,0.00010999,2]
[333251551,1721983837242,-1413.93,0.00010999,2]
[333251552,1721983837251,-1413.93,0.00010999,2]
[333251553,1721983837260,-1413.93,0.00010999,2]
[333251554,1721983837270,-1413.93,0.00010999,2]
[333251555,1721983837279,-1413.93,0.00010999,2]
[333251556,1721983837288,-1413.93,0.00010999,2]
[333251557,1721983837301,-1414.13945985,0.00010999,2]
[333251558,1721983837311,-520.57538821,0.00010999,2]
[333251559,1721983837320,-501.44,0.00010999,2]
[333251560,1721983837329,-501.44,0.00010999,2]
[333251561,1721983837339,-501.44,0.00010999,2]
[333251562,1721983837348,-501.44,0.00010999,2]
[333251563,1721983837358,-501.44,0.00010999,2]
[333251564,1721983837367,-501.44,0.00010999,2]
[333251565,1721983837376,-501.44,0.00010999,2]
[333251566,1721983837386,-501.44,0.00010999,2]
[333251567,1721983837396,-501.44,0.00010999,2]
[333251568,1721983837405,-501.44,0.00010999,2]
[333251569,1721983837416,-501.44,0.00010999,2]
[333251570,1721983837426,-501.44,0.00010999,2]
[333251571,1721983837435,-501.44,0.00010999,2]
[333251572,1721983837445,-501.44,0.00010999,2]
[333251573,1721983837455,-501.44,0.00010999,2]
[333251574,1721983837465,-501.44,0.00010999,2]
[333251575,1721983837474,-501.44,0.00010999,2]
[333251576,1721983837483,-501.44,0.00010999,2]
[333251577,1721983837495,-501.44,0.00010999,2]
[333251578,1721983837504,-501.44,0.00010999,2]
[333251579,1721983837514,-501.44,0.00010999,2]
[333251580,1721983837525,-501.44,0.00010999,2]
[333251581,1721983837536,-501.5158828,0.00010999,2]
[333251582,1721983837547,-500.0,0.00010999,2]
[333251583,1721983837559,-536.1409119,0.00010999,2]
[333251584,1721983837568,-231.62129901,0.00010999,2]
[333251585,1721983837577,-188416.09080503,0.00011,2]
[333251586,1721983837586,-1829.0,0.00011,2]
[333251587,1721983837595,-1254.0,0.00011,2]
[333251588,1721983837605,-362.0,0.00011,2]
[333251589,1721983837614,-1664.0,0.00011,2]
[333251590,1721983837623,-621.0,0.00011,2]
[333251591,1721983837633,-150.0,0.00011,2]
[333251592,1721983837642,-566.165,0.00011,2]
[333251593,1721983837651,-2383.0,0.00011,2]
[333251594,1721983837660,-150.0,0.00011,2]
[333251595,1721983837670,-548.0,0.00011,2]
[333251596,1721983837679,-3284.0,0.00011,2]
[333251597,1721983837688,-1995.0,0.00011,2]
[333251598,1721983837698,-150.0,0.00011,2]
[333251599,1721983837707,-211.0,0.00011,2]
[333251600,1721983837717,-343.869,0.00011,2]
[333251601,1721983837727,-3562.517,0.00011,2]
[333251602,1721983837738,-150.715,0.00011,2]
[333251603,1721983837747,-150.0,0.00011,2]
[333251604,1721983837756,-871.996,0.00011,2]
[333251605,1721983837766,-22113.0,0.00011,2]
[333251606,1721983837775,-10699.89093431,0.00011,2]
[333251607,1721983837789,-296.5600783,0.00011,2]
[333251618,1721983838672,-301.50295456,0.000109,2]
[333251619,1721983838681,-335552.82864643,0.00011,2]
[333251620,1721983838693,-5629.96734332,0.00011,2]
[333251621,1721983838710,-2612.85746224,0.00011,2]
[333251622,1721983838722,-1478.00702029,0.00011,2]
[333251623,1721983838734,-6688.73988323,0.00011,2]
[333251624,1721983838748,-2995.97861347,0.00011,2]
[333251626,1721983840636,-306.3017982,0.00011,2]
[333251627,1721983840647,-26563.21593232,0.00011,2]
[333251628,1721983840662,-713.16322836,0.00011,2]
[333251629,1721983840683,-4110.57959604,0.00011,2]
[333251659,1721983843663,-325.95,0.00010998,2]
[333251741,1721983847249,-153.43708463,0.00010998,2]
[333251742,1721983847259,-1171.54703537,0.00011,2]
[333251751,1721983847706,-1418.17641098,0.00011,2]
[333251753,1721983847718,-20749.31061496,0.00011,2]
[333251755,1721983847730,-7959.23416258,0.00011,2]
[333251757,1721983847746,-6081.96661512,0.00011,2]
[333251759,1721983847757,-367.1453454,0.00011,2]
[333251762,1721983847769,-495.458092,0.00011,2]
[333251764,1721983847781,-6719.08296236,0.00011,2]
[333251766,1721983847792,-4843.8199897,0.00011,2]
[333251768,1721983847803,-489698.34477778,0.00011,2]
[333251770,1721983847814,-42517.21532921,0.00011,2]
[333251782,1721984021601,599.06,0.0001337,30]
[333251788,1721984650585,549.13,0.0001337,30]
[333251789,1721984674914,1000.0,0.00016299,120]
[333251794,1721985032315,-351.89855854,8.219e-05,2]
[333251795,1721985032372,-125.32144146,8.219e-05,2]
[333251796,1721985032381,-160.0,9.58e-05,2]
[333251797,1721985032391,-264.49,0.00010228,2]
[333251798,1721985032401,-243.53855854,0.00010231,2]
[333251799,1721985032483,-20.95144146,0.00010231,2]
[333251800,1721985032493,-264.49,0.00010234,2]
[333251801,1721985032502,-264.49,0.00010237,2]
[333251802,1721985032512,-264.49,0.00010239,2]
[333251803,1721985032522,-264.49,0.00010242,2]
[333251804,1721985032531,-264.49,0.00010245,2]
[333251805,1721985032541,-264.49,0.00010247,2]
[333251806,1721985032550,-264.49,0.0001025,2]
[333251807,1721985032559,-206.27,0.0001025,2]
[333251808,1721985032568,-264.49,0.00010253,2]
[333251809,1721985032577,-264.49,0.00010255,2]
[333251810,1721985032586,-264.49,0.00010258,2]
[333251811,1721985032596,-264.49,0.00010261,2]
[333251812,1721985032606,-264.49,0.00010263,2]
[333251813,1721985032616,-840.0,0.00010265,2]
[333251814,1721985032627,-264.49,0.00010266,2]
[333251815,1721985032637,-264.49,0.00010269,2]
[333251816,1721985032646,-264.49,0.00010271,2]
[333251817,1721985032655,-264.49,0.00010274,2]
[333251818,1721985032665,-264.49,0.00010277,2]
[333251819,1721985032675,-264.49,0.00010279,2]
[333251820,1721985032685,-477.22,0.00010456,2]
[333251821,1721985032696,-300.0,0.00010777,2]
[333251822,1721985032912,-160.0,0.00010777,2]
[333251823,1721985032922,-189.3426764,0.0001078,2]
[333251824,1721985032931,-5835.75294026,0.000109,2]
[333251825,1721985032947,-648.10144146,0.000109,2]
[333251832,1721985037698,-520.9101,0.000109,2]
[333251833,1721985037806,-467.19909809,0.000109,2]
[333251852,1721985039680,-28.03642019,0.000109,2]
[333251853,1721985039690,-1419.05224352,0.000109,2]
[333251854,1721985039702,-1048.21934277,0.000109,2]
[333251855,1721985039771,-346.72353876,0.000109,2]
[333251856,1721985039783,-268.64651955,0.000109,2]
[333251857,1721985039798,-867.88814911,0.000109,2]
[333251858,1721985039810,-714.13926867,0.000109,2]
[333251859,1721985039912,-5335.33093762,0.000109,2]
[333251860,1721985039922,-167.05516025,0.000109,2]
[333251861,1721985039931,-400.68262396,0.000109,2]
[333251862,1721985039941,-646.13790204,0.000109,2]
[333251863,1721985039950,-156.786,0.00010908,2]
[333251864,1721985039960,-500.0,0.00010912,2]
[333251865,1721985039969,-150.0,0.00010937,2]
[333251866,1721985039979,-200.0,0.00010959,2]
[333251867,1721985039989,-153.0,0.00010973,2]
[333251868,1721985039999,-154.33032649,0.00010997,2]
[333251869,1721985040008,-362.88398037,0.00010998,2]
[333251870,1721985040017,-875.8327871,0.00010998,2]
[333251871,1721985040027,-1159.0044403,0.00010998,2]
[333251873,1721985040036,-16994.6520523,0.00010998,2]
[333251874,1721985040046,-980.98,0.00010998,2]
[333251876,1721985040055,-625.0,0.00010999,2]
[333251878,1721985040065,-981.01,0.00010999,2]
[333251880,1721985040075,-407.05459663,0.00010999,2]
[333251881,1721985040084,-500.0,0.00010999,2]
[333251883,1721985040094,-500.0,0.00010999,2]
[333251885,1721985040103,-500.0,0.00010999,2]
[333251887,1721985040113,-500.0,0.00010999,2]